bitfinex-derivatives/quotes_ETHF0:USTF0_20210111
["timestamp","ask_amount","ask_price","bid_price","bid_amount"]
[1610346954049,4.00959,1073.2,1073.1,2.1978]
[1610346954248,4.00959,1073.2,1073.0,0.25]
[1610346956749,1.9323,1073.9,1073.0,0.25]
[1610346956949,4.00959,1073.8,1073.6,4.00959]
[1610346957151,1.9323,1073.9,1073.6,4.00959]
[1610346957350,5.9398,1075.4,1073.6,6.37219]
[1610346958352,5.9398,1075.4,1073.7,1.43163181]
[1610346959051,5.9398,1075.4,1074.1,4.00959]
[1610346959251,5.9398,1075.4,1074.1,6.11479]
[1610346961056,9.94939,1075.4,1074.9,4.00959]
[1610346961255,9.94939,1075.4,1074.9,1.9942]
[1610346962756,5.9398,1075.4,1074.9,1.9942]
[1610346963157,5.9398,1075.4,1075.2,4.00959]
[1610346963357,5.9398,1075.4,1075.2,6.46959]
[1610346964559,5.9398,1075.4,1075.2,2.46]
[1610346965164,9.84149,1075.3,1075.0,1.43056271]
[1610346965364,9.84149,1075.3,1075.2,1.43094232]
[1610346966764,9.84149,1075.3,1075.0,1.43137421]
[1610346966964,11.98269,1075.3,1075.0,1.43137421]
[1610346967164,4.00959,1075.1,1075.0,1.43137421]
[1610346967968,4.00959,1075.1,1074.3,54.3111]
[1610346968169,4.00959,1075.1,1074.4,1.43261598]
[1610346969172,4.00959,1074.5,1073.2,2.4437]
[1610346969370,4.00959,1074.5,1070.8,2.62571488]
[1610346969371,6.44909,1074.5,1070.8,2.62571488]
[1610346969769,6.44909,1074.5,1070.1,5.08112171]
[1610346969968,6.44909,1074.5,1069.6,5.34232811]
[1610346970368,8.31649,1074.5,1069.6,0.25]
[1610346970767,6.44909,1074.5,1069.6,0.25]
[1610346971169,2.4395,1074.5,1072.4,4.00959]
[1610346971370,2.1316,1074.1,1072.4,4.00959]
[1610346971569,77.6877,1073.3,1072.4,6.31219]
[1610346972772,77.6877,1073.3,1072.5,1.4330748]
[1610346973173,81.69729,1073.3,1072.7,5.86449]
[1610346973572,81.69729,1073.3,1072.7,1.8549]
[1610346974373,4.00959,1073.3,1072.8,1.43317694]
[1610346975174,4.00959,1072.9,1072.8,1.43317694]
[1610346975674,6.22349,1072.9,1072.8,1.43317694]
[1610346975874,6.22349,1072.9,1071.4,4.00959]
[1610346976074,6.22349,1072.9,1070.6,6.181]
[1610346976876,4.00959,1072.9,1070.6,6.181]
[1610346977076,2.4721,1073.2,1072.8,4.00959]
[1610346977275,2.4395,1074.5,1072.8,4.00959]
[1610346977476,7.9731,1075.3,1072.8,4.00959]
[1610346977679,7.9731,1075.3,1072.8,5.83879]
[1610346978676,7.9731,1075.3,1072.9,1.43321278]
[1610346979076,4.00959,1073.6,1073.1,4.00959]
[1610346979276,4.00959,1073.6,1072.9,1.43321278]
[1610346980978,14.52939,1073.6,1072.9,1.43321278]
[1610346981178,4.00959,1073.0,1072.9,1.43321278]
[1610346981578,6.32539,1073.0,1072.9,1.43321278]
[1610346981777,6.32539,1073.0,1071.5,76.5088]
[1610346982983,4.00959,1073.0,1071.5,76.5088]
[1610346983181,4.00959,1073.0,1072.9,4.00959]
[1610346983580,10.5198,1073.6,1072.9,4.00959]
[1610346984181,10.5198,1073.6,1072.9,5.98839]
[1610346984581,10.5198,1073.6,1072.9,1.9788]
[1610346985180,4.00959,1073.0,1072.9,1.9788]
[1610346985383,6.0224,1073.9,1072.9,1.9788]
[1610346987186,4.00959,1073.0,1072.9,1.9788]
[1610346988487,4.00959,1073.0,1072.6,1.7147]
[1610346988488,4.00959,1073.0,1071.7,2.87060135]
[1610346988688,4.00959,1073.0,1072.9,1.43430656]
[1610346989490,2.4561,1073.7,1072.9,1.43430656]
[1610346990089,2.4561,1073.7,1072.9,3.51080656]
[1610346990289,2.2796,1074.0,1072.9,2.0765]
[1610346991290,2.2796,1074.0,1073.2,4.00959]
[1610346992391,71.0937,1074.8,1073.2,4.00959]
[1610346993193,4.00959,1073.6,1073.4,4.00959]
[1610346994495,4.00959,1073.6,1073.5,1.43313099]
[1610346994697,71.0937,1074.8,1073.5,1.43313099]
[1610346995196,4.00959,1073.8,1073.6,4.00959]
[1610346995397,4.00959,1073.8,1073.5,1.43313099]
[1610346995898,4.00959,1073.8,1073.7,1.43294089]
[1610346996297,2.4855,1074.3,1073.7,1.43294089]
[1610346997298,4.00959,1073.8,1073.6,4.00959]
[1610346997698,4.00959,1073.8,1073.4,1.43277647]
[1610346999300,4.00959,1073.5,1073.4,1.43277647]
[1610346999899,4.00959,1073.5,1072.7,1.43355776]
[1610347001300,4.00959,1072.8,1072.7,1.43355776]
[1610347001500,6.17099,1072.8,1072.7,1.43355776]
[1610347002603,6.17099,1072.8,1071.4,1.43426124]
[1610347003205,4.00959,1071.5,1071.4,1.43426124]
[1610347003906,4.00959,1071.5,1071.3,1.43448602]
[1610347004908,1.9655,1072.5,1071.3,1.43448602]
[1610347005308,4.00959,1072.0,1071.9,4.00959]
[1610347005710,2.1614,1072.8,1071.9,4.00959]
[1610347005910,6.0551,1073.5,1071.9,5.60169]
[1610347006712,6.0551,1073.5,1072.0,1.43373685]
[1610347007315,6.0551,1073.5,1072.1,4.00959]
[1610347007714,6.0551,1073.5,1072.0,1.43373685]
[1610347008115,6.0551,1073.5,1072.2,1.43369218]
[1610347009116,79.0323,1073.5,1072.2,1.43369218]
[1610347009318,4.00959,1072.3,1072.2,1.43369218]
[1610347009515,4.00959,1072.3,1072.0,1.43393832]
[1610347010918,4.00959,1072.3,1071.4,1.43501334]
[1610347011116,4.00959,1072.3,1069.7,2.87314955]
[1610347011316,4.00959,1069.9,1069.5,2.87395967]
[1610347011516,5.56029,1069.9,1069.4,2.87369957]
[1610347011716,1.5507,1069.9,1069.4,2.87369957]
[1610347012116,1.5507,1069.9,1069.2,2.87347782]
[1610347012319,1.5507,1069.9,1069.7,1.43596802]
[1610347012516,6.3213,1072.3,1069.7,3.91016802]
[1610347013319,4.00959,1070.3,1069.7,6.20927646]
[1610347013522,4.00959,1070.3,1069.7,3.91016802]
[1610347013720,4.00959,1070.3,1069.8,1.43581677]
[1610347015019,4.00959,1070.3,1069.7,2.4742]
[1610347015220,4.00959,1070.4,1070.0,4.00959]
[1610347015419,4.00959,1070.4,1070.0,2.3872]
[1610347016620,4.00959,1070.4,1069.7,2.4742]
[1610347017221,4.00959,1069.8,1069.7,2.4742]
[1610347017426,4.00959,1069.8,1069.6,0.25]
[1610347017623,6.10719,1069.8,1069.6,0.25]
[1610347019023,4.00959,1069.8,1069.6,0.25]
[1610347019222,4.00959,1070.1,1069.7,4.00959]
[1610347019422,4.00959,1070.1,1069.7,6.29079]
[1610347020423,4.00959,1070.1,1069.7,2.2812]
[1610347021225,4.00959,1069.8,1069.7,2.2812]
[1610347022024,6.0734,1070.6,1069.7,2.2812]
[1610347023226,4.00959,1069.8,1069.7,2.2812]
[1610347023427,4.00959,1069.8,1069.6,0.25]
[1610347025328,81.46259,1069.8,1069.6,0.25]
[1610347027830,0.85689,1069.8,1069.6,0.25]
[1610347028030,6.0734,1070.6,1069.6,0.25]
[1610347028430,6.0734,1070.6,1069.6,2.1385]
[1610347029230,52.4675,1071.0,1070.5,4.00959]
[1610347030731,52.4675,1071.0,1070.6,1.43595641]
[1610347032132,52.4675,1071.0,1070.5,1.43583108]
[1610347032333,1.714,1071.5,1070.5,1.43583108]
[1610347033334,4.00959,1072.5,1071.4,4.00959]
[1610347033734,4.00959,1072.5,1070.9,1.9842]
[1610347033936,6.43719,1072.5,1070.9,1.9842]
[1610347034734,6.43719,1072.5,1071.0,1.43476577]
[1610347035435,4.00959,1071.7,1071.0,5.44435577]
[1610347035635,4.00959,1071.7,1071.0,1.43476577]
[1610347036235,4.00959,1071.7,1070.9,1.9842]
[1610347037036,1.9078,1071.9,1070.9,1.9842]
[1610347037436,5.91739,1071.9,1070.9,1.9842]
[1610347037837,1.9078,1071.9,1070.9,1.9842]
[1610347038536,1.9078,1071.9,1070.4,2.0199]
[1610347038737,1.9078,1071.9,1070.4,9.0]
[1610347038937,2.276,1072.2,1071.0,1.43426737]
[1610347039139,2.276,1072.2,1071.0,3.43866737]
[1610347039337,4.00959,1072.0,1071.0,3.43866737]
[1610347040237,4.00959,1072.0,1071.1,1.43436404]
[1610347040837,2.276,1072.2,1071.1,1.43436404]
[1610347041437,4.00959,1071.5,1071.1,1.43436404]
[1610347041637,4.00959,1071.5,1071.0,2.0044]
[1610347042239,5.79989,1071.5,1070.3,75.3555]
[1610347043044,5.79989,1071.5,1070.4,1.43547069]
[1610347043445,4.00959,1070.5,1070.4,1.43547069]
[1610347044245,4.00959,1070.5,1070.3,75.3555]
[1610347045248,4.00959,1070.5,1069.6,2.1385]
[1610347045447,4.00959,1070.5,1070.1,4.00959]
[1610347045647,1.5012,1071.2,1070.1,4.00959]
[1610347045847,1.5012,1071.2,1070.1,5.75679]
[1610347047050,1.5012,1071.2,1070.2,1.4355512]
[1610347047648,73.3617,1071.5,1070.4,1.7458]
[1610347048249,73.3617,1071.5,1070.5,1.43505078]
[1610347049349,73.3617,1071.5,1071.3,4.00959]
[1610347051148,73.3617,1071.5,1071.4,1.43405517]
[1610347051949,57.3755,1071.5,1071.4,1.43405517]
[1610347052150,62.2359,1073.3,1071.4,1.43405517]
[1610347052349,62.2359,1073.3,1071.4,10.43405517]
[1610347052549,62.2359,1073.3,1071.4,1.43405517]
[1610347053348,4.00959,1072.2,1071.8,4.00959]
[1610347053749,5.85309,1072.2,1071.8,4.00959]
[1610347053950,5.85309,1072.2,1071.4,1.43405517]
[1610347055451,5.70069,1071.5,1070.9,1.43467399]
[1610347057055,1.6911,1071.5,1070.5,1.43469143]
[1610347057455,1.6911,1071.5,1071.4,4.00959]
[1610347058455,1.6911,1071.5,1071.4,5.44370287]
[1610347059654,4.00959,1072.1,1071.4,5.44370287]
[1610347060054,1.8435,1072.2,1071.4,5.44370287]
[1610347060254,76.3309,1072.4,1071.4,5.44370287]
[1610347061454,76.3309,1072.4,1072.3,4.00959]
[1610347062954,76.3309,1072.4,1071.9,1.6206]
[1610347063754,76.3309,1072.4,1071.0,1.9315]
[1610347064154,76.3309,1072.4,1072.0,1.43404928]
[1610347065156,76.3309,1072.4,1070.0,1.9428]
[1610347065357,1.9237,1072.6,1070.0,1.9428]
[1610347065556,4.00959,1070.1,1070.0,1.9428]
[1610347066358,4.00959,1070.1,1069.6,0.25]
[1610347066757,4.00959,1070.1,1070.0,1.43616259]
[1610347068358,4.00959,1070.1,1069.6,0.25]
[1610347069460,4.00959,1069.7,1069.6,0.25]
[1610347073562,6.33659,1069.7,1069.6,0.25]
[1610347074764,6.33659,1069.7,1067.9,0.5911]
[1610347074765,10.2565,1068.8,1067.9,0.5911]
[1610347074965,12.4686,1068.8,1067.9,0.5911]
[1610347075565,4.00959,1068.0,1067.9,0.5911]
[1610347075766,5.84039,1068.0,1067.1,150.4321]
[1610347077566,4.00959,1067.6,1067.1,150.4321]
[1610347077970,5.66849,1067.6,1067.1,150.4321]
[1610347078974,1.8308,1068.0,1067.1,150.4321]
[1610347079374,2.0324,1068.3,1067.1,152.6497]
[1610347079574,2.0324,1068.3,1068.2,4.00959]
[1610347079973,12.4686,1068.8,1068.2,4.00959]
[1610347080373,12.4686,1068.8,1068.3,30.0]
[1610347080574,12.4686,1068.8,1068.2,34.00959]
[1610347080975,12.4686,1068.8,1068.2,4.00959]
[1610347081577,10.2565,1068.8,1068.7,4.00959]
[1610347083978,10.2565,1068.8,1068.7,13.00959]
[1610347084179,2.1244,1069.5,1068.7,13.00959]
[1610347084380,2.1244,1069.5,1068.7,4.00959]
[1610347084580,2.1244,1069.5,1068.2,11.0194]
[1610347085580,2.1244,1069.5,1068.9,4.00959]
[1610347085983,2.1244,1069.5,1068.9,13.00959]
[1610347086382,2.1244,1069.5,1068.9,43.00959]
[1610347086581,5.8385,1070.0,1068.9,15.21179]
[1610347087483,5.8385,1070.0,1069.9,4.00959]
[1610347087884,70.7229,1070.6,1069.9,13.00959]
[1610347088684,70.7229,1070.6,1069.9,43.00959]
[1610347089486,4.00959,1072.2,1070.5,4.00959]
[1610347089687,4.00959,1072.2,1070.5,5.71099]
[1610347089890,4.00959,1072.2,1070.5,14.71099]
[1610347090287,4.00959,1072.2,1070.5,44.71099]
[1610347090487,6.1699,1072.3,1070.5,122.35029]
[1610347091486,6.1699,1072.3,1072.2,4.00959]
[1610347091687,5.7932,1073.3,1072.2,4.00959]
[1610347091889,5.7932,1073.3,1072.2,13.00959]
[1610347092487,5.7932,1073.3,1072.2,43.00959]
[1610347092888,5.7932,1073.3,1072.2,13.00959]
[1610347093489,5.7932,1073.3,1072.8,4.00959]
[1610347094091,5.7932,1073.3,1072.2,9.0]
[1610347094492,7.8921,1073.3,1072.2,9.0]
[1610347095491,7.8921,1073.3,1073.1,4.00959]
[1610347095893,7.8921,1073.3,1073.1,13.00959]
[1610347096893,7.8921,1073.3,1073.1,4.00959]
[1610347097092,7.8921,1073.3,1073.1,13.00959]
[1610347097694,7.8921,1073.3,1073.1,4.00959]
[1610347098293,7.8921,1073.3,1073.1,13.00959]
[1610347100296,7.8921,1073.3,1073.1,4.00959]
[1610347100697,7.8921,1073.3,1072.4,79.9887]
[1610347100698,7.8921,1073.3,1072.4,88.9887]
[1610347101304,7.8921,1073.3,1072.4,86.5949]
[1610347101700,7.8921,1073.3,1073.2,4.00959]
[1610347101899,7.8921,1073.3,1072.4,86.5949]
[1610347102601,7.8921,1073.3,1072.4,77.5949]
[1610347103002,7.8921,1073.3,1072.2,9.0]
[1610347103202,7.8921,1073.3,1072.0,9.0]
[1610347103402,7.8921,1073.3,1071.5,58.4781]
[1610347103602,7.8921,1073.3,1072.5,4.00959]
[1610347103805,7.8921,1073.3,1071.5,60.6823]
[1610347104204,7.8921,1073.3,1071.5,69.6823]
[1610347105206,9.7637,1073.3,1071.5,69.6823]
[1610347105707,7.8921,1073.3,1072.4,4.00959]
[1610347106507,7.8921,1073.3,1071.5,69.6823]
[1610347106707,9.7581,1073.3,1071.5,69.6823]
[1610347106911,7.8921,1073.3,1072.4,9.0]
[1610347107710,7.8921,1073.3,1073.2,4.00959]
[1610347108113,7.8921,1073.3,1073.2,13.00959]
[1610347108711,5.7932,1073.3,1073.2,13.00959]
[1610347109513,5.7932,1073.3,1073.2,43.00959]
[1610347109914,65.914,1074.0,1073.2,43.00959]
[1610347110114,65.914,1074.0,1073.2,45.32299]
[1610347110314,65.914,1074.0,1073.2,15.32299]
[1610347110714,65.914,1074.0,1073.3,30.0]
[1610347111117,65.914,1074.0,1073.3,39.0]
[1610347111721,65.914,1074.0,1073.9,4.00959]
[1610347111918,65.914,1074.0,1073.9,5.94219]
[1610347112117,65.914,1074.0,1073.9,14.94219]
[1610347112318,4.00959,1075.2,1073.9,14.94219]
[1610347113021,4.00959,1075.2,1073.9,1.9326]
[1610347113421,4.00959,1075.2,1073.6,2.3948]
[1610347113624,4.00959,1073.8,1073.6,2.3948]
[1610347114522,4.00959,1073.8,1073.3,4.00959]
[1610347114923,1.493,1074.1,1073.3,4.00959]
[1610347115722,1.493,1074.1,1073.6,4.00959]
[1610347117723,1.493,1074.1,1074.0,4.00959]
[1610347118125,1.493,1074.1,1074.0,34.00959]
[1610347118325,1.6121,1074.4,1074.0,34.00959]
[1610347118524,2.1046,1075.2,1074.0,36.03629]
[1610347118728,74.2378,1075.3,1074.0,36.03629]
[1610347118923,74.2378,1075.3,1074.0,6.03629]
[1610347119724,74.2378,1075.3,1075.2,4.00959]
[1610347121529,74.2378,1075.3,1075.2,5.62659]
[1610347121732,62.1374,1075.3,1075.2,5.62659]
[1610347121935,51.0726,1075.3,1075.2,35.62659]
[1610347122333,6.2583,1076.7,1075.2,35.62659]
[1610347123434,6.2583,1076.7,1075.2,5.62659]
[1610347123832,6.2583,1076.7,1076.6,4.00959]
[1610347128641,6.2583,1076.7,1075.6,1.8758]
[1610347128841,7.8479,1076.7,1075.6,1.8758]
[1610347129544,7.8479,1076.7,1076.0,59.2844]
[1610347129742,4.00959,1076.4,1076.2,4.00959]
[1610347129943,6.07329,1076.4,1076.2,4.00959]
[1610347131342,2.0637,1076.4,1076.2,4.00959]
[1610347133947,2.0637,1076.4,1075.2,1.617]
[1610347134148,2.0637,1076.4,1075.0,63.104]
[1610347135054,7.8479,1076.7,1075.0,63.104]
[1610347135250,2.1324,1076.4,1075.0,63.104]
[1610347135848,4.00959,1075.1,1075.0,63.104]
[1610347136052,5.50539,1075.1,1075.0,63.104]
[1610347137154,5.50539,1075.1,1074.1,52.4788]
[1610347137352,5.50539,1075.1,1071.9,6.27347604]
[1610347137552,5.50539,1075.1,1071.9,3.405]
[1610347137751,4.00959,1072.9,1072.8,4.00959]
[1610347137950,5.99499,1072.9,1072.8,4.00959]
[1610347138151,5.99499,1072.9,1071.7,2.86922142]
[1610347138351,5.99499,1072.9,1071.4,2.86944949]
[1610347138752,5.99499,1072.9,1071.1,2.8700402]
[1610347138950,5.99499,1072.9,1071.0,2.8703794]
[1610347139352,5.99499,1072.9,1070.8,2.87077552]
[1610347139551,5.99499,1072.9,1070.6,9.68218423]
[1610347139752,4.00959,1071.8,1071.5,4.00959]
[1610347140151,2.1629,1072.1,1071.5,4.00959]
[1610347141751,2.1629,1072.1,1072.0,4.00959]
[1610347142352,2.1629,1072.1,1071.2,1.8615]
[1610347143854,4.00959,1071.4,1071.2,1.8615]
[1610347144054,2.1629,1072.1,1071.2,1.8615]
[1610347145057,1.9854,1072.9,1071.2,1.8615]
[1610347145255,5.7602,1073.5,1071.2,1.8615]
[1610347145455,5.7602,1073.5,1070.9,60.4096]
[1610347145658,5.7602,1073.5,1071.0,2.4425]
[1610347145859,4.00959,1071.1,1070.9,60.4096]
[1610347146856,6.06199,1071.1,1070.9,60.4096]
[1610347148964,2.0524,1071.1,1070.9,60.4096]
[1610347149766,2.0524,1071.1,1071.0,4.00959]
[1610347149968,1.5494,1071.7,1071.0,4.00959]
[1610347150366,5.9574,1073.0,1071.0,4.00959]
[1610347151770,5.9574,1073.0,1072.9,4.00959]
[1610347153373,1.9758,1073.5,1072.9,4.00959]
[1610347153573,1.8701,1076.2,1072.9,4.00959]
[1610347153772,30.0,1078.2,1072.2,1.5841]
[1610347153773,4.00959,1074.6,1074.0,4.00959]
[1610347154174,5.56959,1074.6,1074.0,4.00959]
[1610347154975,5.56959,1074.6,1072.5,1.9462]
[1610347155873,4.00959,1073.8,1072.5,1.9462]
[1610347156075,6.26059,1073.8,1072.5,1.9462]
[1610347157577,8.14189,1073.8,1072.5,1.9462]
[1610347157777,6.26059,1073.8,1072.2,1.5841]
[1610347157976,4.00959,1072.6,1072.2,1.5841]
[1610347158380,4.00959,1072.6,1071.5,2.2804]
[1610347158576,4.00959,1072.6,1071.2,2.3413]
[1610347158777,4.00959,1072.6,1070.3,2.87425071]
[1610347159376,4.00959,1072.6,1070.2,74.6858]
[1610347159878,4.00959,1071.3,1070.2,74.6858]
[1610347160078,4.00959,1071.3,1070.4,1.4361785]
[1610347160278,4.00959,1071.3,1070.4,2.9523785]
[1610347161478,4.00959,1071.3,1070.4,1.5162]
[1610347161879,4.00959,1070.5,1070.4,5.52579]
[1610347162282,2.2852,1071.7,1070.4,5.52579]
[1610347162481,2.2852,1071.7,1070.4,4.00959]
[1610347163784,2.2852,1071.7,1070.4,6.04369]
[1610347163984,2.2852,1071.7,1071.6,4.00959]
[1610347164785,2.2852,1071.7,1070.8,1.5251]
[1610347165686,2.2852,1071.7,1070.4,2.0341]
[1610347165885,2.2852,1071.7,1071.4,4.00959]
[1610347167287,1.8566,1072.3,1071.4,4.00959]
[1610347167487,6.2282,1073.0,1071.4,4.00959]
[1610347167888,2.3463,1073.1,1072.7,4.00959]
[1610347168086,4.00959,1073.3,1072.7,4.00959]
[1610347168488,6.2649,1073.7,1072.7,4.00959]
[1610347169888,4.00959,1073.5,1073.3,4.00959]
[1610347170089,4.00959,1073.5,1072.1,1.5107]
[1610347170289,6.13459,1073.5,1072.1,1.5107]
[1610347170891,2.125,1073.5,1072.1,1.5107]
[1610347171891,2.125,1073.5,1073.4,4.00959]
[1610347172091,2.125,1073.5,1072.5,1.8451]
[1610347173094,6.2649,1073.7,1072.5,1.8451]
[1610347173894,6.2649,1073.7,1073.6,4.00959]
[1610347175097,6.2649,1073.7,1073.0,1.9941]
[1610347175896,4.00959,1073.3,1073.2,4.00959]
[1610347176096,6.2649,1073.7,1073.2,4.00959]
[1610347176298,6.2649,1073.7,1072.5,1.8451]
[1610347177299,6.2649,1073.7,1072.1,1.5107]
[1610347177498,6.2649,1073.7,1071.8,1.9062]
[1610347177698,6.2649,1073.7,1071.0,32.87232866]
[1610347177897,6.2649,1073.7,1072.0,53.0543]
[1610347178100,6.2649,1073.7,1073.6,4.00959]
[1610347179099,6.2649,1073.7,1073.0,2.0921]
[1610347180104,6.04099,1073.1,1072.2,4.00959]
[1610347180301,6.04099,1073.1,1072.0,53.0543]
[1610347182002,4.00959,1072.1,1072.0,53.0543]
[1610347182202,6.17459,1072.1,1072.0,53.0543]
[1610347185906,16.52579,1072.1,1070.4,61.3629]
[1610347186106,4.00959,1070.6,1070.4,65.37249]
[1610347186307,4.00959,1070.6,1070.4,61.3629]
[1610347186506,2.0269,1071.4,1070.4,61.3629]
[1610347186706,2.0269,1071.4,1070.4,63.4596]
[1610347187410,2.0269,1071.4,1070.4,2.0967]
[1610347188008,4.00959,1071.3,1071.0,4.00959]
[1610347188209,2.0269,1071.4,1071.0,4.00959]
[1610347188407,67.8098,1071.8,1071.0,4.00959]
[1610347189610,5.9402,1072.0,1071.0,4.00959]
[1610347190013,4.00959,1071.5,1071.0,4.00959]
[1610347190410,5.9402,1072.0,1071.0,4.00959]
[1610347192012,5.9402,1072.0,1071.9,4.00959]
[1610347192412,5.9402,1072.0,1071.9,6.12699]
[1610347192814,5.9402,1072.0,1071.9,2.1174]
[1610347193415,5.9402,1072.0,1070.9,1.5983]
[1610347193615,5.9402,1072.0,1071.2,2.2921]
[1610347194014,4.00959,1071.3,1071.2,2.2921]
[1610347194615,4.00959,1071.3,1070.9,2.4705]
[1610347195014,4.00959,1071.3,1070.5,76.3249]
[1610347196115,4.00959,1070.9,1070.5,76.3249]
[1610347196717,4.00959,1070.9,1070.4,2.0967]
[1610347197117,4.00959,1070.9,1069.9,72.2768]
[1610347198220,1.7789,1071.7,1070.8,4.00959]
[1610347198421,5.9402,1072.0,1070.8,6.24329]
[1610347198620,64.1915,1072.3,1070.8,6.24329]
[1610347200123,64.1915,1072.3,1072.1,4.00959]
[1610347200322,64.1915,1072.3,1071.8,2.1532]
[1610347202124,4.00959,1072.1,1071.8,2.1532]
[1610347202923,6.39279,1072.1,1071.6,4.00959]
[1610347203424,6.39279,1072.1,1070.8,2.2337]
[1610347203625,6.39279,1072.1,1069.9,72.2768]
[1610347204223,4.00959,1071.5,1069.9,72.2768]
[1610347205023,4.00959,1071.5,1070.1,1.43667122]
[1610347205424,4.00959,1071.5,1070.1,3.01227122]
[1610347206226,4.00959,1070.2,1070.1,3.01227122]
[1610347206425,4.00959,1070.2,1070.1,1.5756]
[1610347207226,1.8114,1071.3,1070.1,1.5756]
[1610347208126,4.00959,1070.2,1070.1,1.5756]
[1610347208528,2.2383,1071.6,1070.1,1.5756]
[1610347210128,4.00959,1070.2,1070.1,1.5756]
[1610347210328,4.00959,1070.2,1069.5,4.00959]
[1610347210729,6.2149,1072.0,1069.5,4.00959]
[1610347210929,6.2149,1072.0,1069.5,6.19509]
[1610347212031,6.2149,1072.0,1069.6,1.43655723]
[1610347212230,6.2149,1072.0,1071.6,4.00959]
[1610347212429,6.1128,1072.3,1071.6,2.4221]
[1610347212631,2.2016,1072.8,1071.6,2.4221]
[1610347213031,30.0,1074.7,1071.6,2.4221]
[1610347213232,7.6364,1074.2,1071.6,2.4221]
[1610347213434,10.19326382,1072.7,1071.6,2.4221]
[1610347213833,12.14026382,1072.7,1071.6,2.4221]
[1610347214232,4.00959,1071.7,1071.6,2.4221]
[1610347214432,4.00959,1071.7,1069.5,2.1855]
[1610347216034,4.00959,1071.7,1069.6,1.43698063]
[1610347216233,4.00959,1071.7,1070.7,5.73689]
[1610347217238,5.9024,1072.0,1070.7,5.73689]
[1610347217633,5.9024,1072.0,1070.8,1.43621364]
[1610347218134,9.91199,1072.0,1071.8,4.00959]
[1610347218534,9.91199,1072.0,1071.8,5.54959]
[1610347218735,5.9024,1072.0,1071.8,1.54]
[1610347221838,5.9024,1072.0,1071.0,2.2011]
[1610347222236,4.00959,1071.6,1071.0,2.2011]
[1610347222639,5.9024,1072.0,1071.0,2.2011]
[1610347222938,6.0983,1072.6,1071.0,2.2011]
[1610347223538,6.0983,1072.6,1071.1,1.43596046]
[1610347224141,6.0983,1072.6,1071.7,4.00959]
[1610347224338,6.0983,1072.6,1071.1,1.43596046]
[1610347226038,10.46590012,1072.5,1071.0,2.2011]
[1610347226238,4.00959,1071.1,1071.0,2.2011]
[1610347226842,4.00959,1071.1,1070.7,1.7273]
[1610347227040,4.00959,1071.1,1070.5,65.848]
[1610347228242,4.00959,1070.6,1070.5,65.848]
[1610347233247,4.00959,1070.6,1067.6,2.87819751]
[1610347233447,5.53139,1070.6,1067.6,2.87819751]
[1610347233648,6.2396,1070.5,1067.4,2.87916577]
[1610347233848,12.5468,1070.5,1067.6,9.0]
[1610347234049,12.5468,1070.5,1067.6,1.5222]
[1610347234248,4.00959,1069.0,1068.9,4.00959]
[1610347234449,4.00959,1069.0,1067.8,57.7454]
[1610347235449,71.889,1070.0,1067.8,66.7454]
[1610347236252,71.889,1070.0,1067.9,1.43815258]
[1610347236650,71.889,1070.0,1067.9,3.48495258]
[1610347237650,71.889,1070.0,1068.0,1.43860624]
[1610347238252,4.00959,1068.4,1068.0,5.44819624]
[1610347238452,4.00959,1068.4,1068.0,1.43860624]
[1610347239054,4.00959,1068.4,1067.9,11.1991]
[1610347240255,4.00959,1068.0,1067.9,11.1991]
[1610347241261,4.00959,1068.0,1067.1,65.3679]
[1610347241459,4.00959,1068.0,1066.1,0.25]
[1610347242261,4.00959,1066.5,1066.1,0.25]
[1610347242459,6.1993,1067.9,1066.1,0.25]
[1610347242661,6.1993,1067.9,1066.1,2.6092]
[1610347243861,68.9727,1067.8,1066.1,2.6092]
[1610347244264,4.00959,1066.9,1066.1,2.6092]
[1610347245263,68.9727,1067.8,1066.1,2.6092]
[1610347246064,68.9727,1067.8,1066.1,11.6092]
[1610347246266,68.9727,1067.8,1067.3,4.00959]
[1610347246463,11.8008,1068.5,1067.3,6.49339]
[1610347246664,11.8008,1068.5,1067.3,15.49339]
[1610347247265,1.14978,1075.7,1067.3,45.49339]
[1610347247467,1.8903,1071.8,1067.3,45.49339]
[1610347248265,4.00959,1070.4,1069.3,4.00959]
[1610347250066,1.9372,1070.9,1069.3,4.00959]
[1610347250265,4.00959,1071.0,1070.2,4.00959]
[1610347250465,4.00959,1071.0,1070.2,5.80019]
[1610347251865,4.00959,1071.0,1070.2,1.7906]
[1610347252065,4.00959,1071.0,1067.9,2.87949738]
[1610347252265,4.00959,1069.3,1067.9,2.87949738]
[1610347252466,4.00959,1069.3,1067.6,2.88092743]
[1610347252668,4.00959,1069.3,1067.0,2.88154452]
[1610347253066,5.84949,1069.3,1068.0,3.10717052]
[1610347254168,4.00959,1068.3,1068.0,3.10717052]
[1610347254568,1.8399,1069.3,1068.0,1.6672]
[1610347255567,1.9666,1069.8,1068.0,10.6672]
[1610347255768,2.0555,1071.0,1068.0,10.6672]
[1610347256171,4.00959,1069.6,1069.0,4.00959]
[1610347256369,2.0555,1071.0,1069.0,4.00959]
[1610347256570,2.0555,1071.0,1069.0,5.83929]
[1610347257171,3.9488,1071.0,1069.0,5.83929]
[1610347257370,10.47548,1070.9,1069.0,5.83929]
[1610347257970,10.47548,1070.9,1069.0,1.8297]
[1610347258371,4.00959,1069.4,1069.0,5.83929]
[1610347258672,1.5587,1070.3,1069.0,5.83929]